Cogmind - Beta 14 @@@ ROGUE MODE // 2024.09.06 @ 20:51:30 Player: JohnnyDongs Result: Destroyed by G9-S17(z) with Zionite Laser-S Performance ------------- Evolutions (3) 1500 Regions Visited (12) 2400 Robots Destroyed (130) 650 Value Destroyed (3869) 3869 Prototype IDs (22) 440 Alien Tech Used (0) 0 Bonus (1897) 1897 TOTAL SCORE: 10756 Bonus ------- High Alert Combat Kills 72 Follower Combat Kills 583 Met Imprinter 300 Destroyed Z-Imprinter 1000 Friendly Fire -58 Cogmind --------- Core Integrity 0/700 Matter 290/300 Energy 100/100 System Corruption 5% Temperature Cool (18) Movement Core (350) Ox6 Location -7/Deep Caves Parts ------- > --- POWER (1) -------- (None) > --- PROPULSION (4) --- (None) > --- UTILITY (6) ------ Experimental Heat Sink Experimental Heat Sink Medium Storage Unit Experimental Armor Integrity Analyzer Phase Shifter Zionite Weapon Casing > --- WEAPON (2) ------- Zionite Laser-S Zionite Laser-S > --- INVENTORY (10) --- Hybrid Deuterium Engine Zionite Light DM Reactor Zionite Glidesys II Zionite Glidesys II Experimental Heat Sink Experimental Heat Sink Zionite Metafield Generator CR-A16's Pointy Stick Peak State ------------ > --- POWER ------------ Enhanced Nuclear Core > --- PROPULSION ------- Light Treads Light Treads Heavy Treads > --- UTILITY ---------- Experimental Heat Sink Experimental Heat Sink Experimental Heat Sink Medium Storage Unit Experimental Armor Integrity Analyzer Improved Medium Armor Plating > --- WEAPON ----------- Zionite Laser-M Zionite Laser-M > --- INVENTORY -------- Hybrid Deuterium Engine Zionite Light DM Reactor Zionite Glidesys II Zionite Glidesys II Zionite Biocell Zionite Metafield Generator Zionite Laser-S Zionite Laser-M Remote Datajack CR-A16's Pointy Stick [Rating: 77] Favorites ----------- Power Ion Engine Engine Ion Engine Power Core Enhanced Nuclear Core Reactor Antimatter Reactor Propulsion Light Treads Treads Light Treads Flight Unit Cesium-ion Thruster Utility Improved Heat Sink Device Improved Heat Sink Storage Medium Storage Unit Processor Advanced Terrain Scan Processor Hackware Hacking Suite Protection Hardened Heavy Armor Plating Weapon Beamcaster Energy Gun Beamcaster Energy Cannon Beam Cannon Ballistic Gun Gauss Rifle Ballistic Cannon Advanced Assault Cannon Launcher Rocket Launcher Special Weapon Remote Datajack Impact Weapon Power Maul Build | -11 -10 -10 -10 -9 -8 -7 -7 -7 -7 -7 -7 -7 ------- Run | Yrd Mat Min Exi Min Mat Fac Was Fac Low Low Zio Dee Slots Evolved 6 | . . . . . 4 2 . . . . . . Power . | . . . . . . . . . . . . . Propulsion 2 | . . . . . . 2 . . . . . . Utility 4 | . . . . . 4 . . . . . . . Weapon . | . . . . . . . . . . . . . Parts Attached 160 | 6 7 . . 10 47 18 14 17 3 . 8 30 Power 12 | 1 . . . 1 4 1 1 2 1 . . 1 Engine 6 | 1 . . . 1 3 1 . . . . . . Core 3 | . . . . . 1 . . 1 1 . . . Reactor 3 | . . . . . . . 1 1 . . . 1 Propulsion 26 | 2 . . . 2 8 4 4 1 . . . 5 Treads 23 | 2 . . . 2 8 4 4 1 . . . 2 Leg . | . . . . . . . . . . . . . Wheel . | . . . . . . . . . . . . . Hover . | . . . . . . . . . . . . . Flight 3 | . . . . . . . . . . . . 3 Utility 66 | 1 5 . . 3 19 7 7 6 2 . 5 11 Device 29 | . 1 . . 1 7 4 4 4 . . 1 7 Storage 6 | 1 2 . . . 2 . . 1 . . . . Processor 9 | . 1 . . 1 1 1 1 . . . 4 . Hackware 2 | . . . . . 2 . . . . . . . Protection 20 | . 1 . . 1 7 2 2 1 2 . . 4 Artifact . | . . . . . . . . . . . . . Weapon 56 | 2 2 . . 4 16 6 2 8 . . 3 13 Energy Gun 38 | . 2 . . 2 11 4 2 5 . . 2 10 Energy Cannon 5 | . . . . . 2 . . 1 . . . 2 Ballistic Gun 6 | 2 . . . 1 1 1 . 1 . . . . Ballistic Cannon 2 | . . . . . . 1 . 1 . . . . Launcher 1 | . . . . . 1 . . . . . . . Special Weapon 2 | . . . . . . . . . . . 1 1 Impact Weapon 2 | . . . . 1 1 . . . . . . . Slashing Weapon . | . . . . . . . . . . . . . Piercing Weapon . | . . . . . . . . . . . . . Special Melee Weapon . | . . . . . . . . . . . . . Unidentified Prototypes 10 | . . . . . 2 . . 4 . . 4 . Parts Lost 36 | . . . . 2 11 . 1 1 1 . . 20 Power 6 | . . . . . 3 . . . 1 . . 2 Propulsion 12 | . . . . 1 3 . 1 . . . . 7 Utility 9 | . . . . 1 3 . . 1 . . . 4 Weapon 9 | . . . . . 2 . . . . . . 7 Highest Loss Streak 7 | . . . . 2 3 . 1 1 1 . . 7 To Critical Strikes . | . . . . . . . . . . . . . Average Slot Usage (%) 88 | . 88 100 100 99 93 96 66 74 76 84 83 83 Engine 5 | . 14 14 14 14 6 6 . . . . . . Core 1 | . . . . . 1 . . . 1 7 7 6 Reactor 1 | . . . . . . . 5 6 5 . . . Treads 19 | . 28 28 28 27 17 27 14 14 15 15 15 13 Device 11 | . 2 . . 2 19 8 6 14 15 15 14 20 Storage 8 | . 14 14 14 14 9 7 . 4 7 7 7 7 Processor 8 | . . 14 14 10 9 5 5 7 7 7 11 8 Hackware 1 | . . . . . 1 15 . . . . . . Protection 7 | . . . . . 9 6 18 9 7 15 10 7 Energy Gun 16 | . 20 28 28 26 15 6 13 12 15 15 14 12 Peak Build Rating 77 | 6 9 8 8 20 38 46 69 69 65 63 76 77 Average Rating 40 | 5 6 8 8 11 32 41 53 64 64 63 66 66 On Entrance 35 | . 6 8 8 8 18 38 46 69 65 63 63 69 Naked Turns 28 | . . . . . . . 28 . . . . . Heaviest Build 108 | 13 32 29 29 34 107 108 100 61 59 45 45 41 Greatest Support 140 | 40 40 40 40 48 48 90 140 140 140 140 140 140 Greatest Overweight (x) 5 | . . . . . 5 1 1 . . . . 5 Average Overweight (x) . | . . . . . 1 1 . . . . . . Largest Inventory Capacity 25 | 8 15 15 15 15 25 25 25 10 10 10 10 10 Average Capacity 14 | 7 12 15 15 15 20 25 6 8 10 10 10 10 Most Carried 25 | 4 10 14 14 15 25 25 23 10 10 10 10 10 Average Carried 12 | 2 7 13 14 13 18 22 5 6 9 10 9 9 Final Capacity 25 | 8 15 15 15 15 25 25 5 10 10 10 10 10 Final Carried 23 | 4 9 14 14 15 21 23 5 10 10 10 10 8 Class Distribution -------------------- 55% | Mutant 34% | Scavenger-Mutant 9% | Hacker-Mutant Dominant Class ---------------- Mutant | -10/Materials Mutant | -10/Mines Mutant | -10/Exiles Mutant | -9/Mines Scavenger-Mutant | -8/Materials Hacker-Mutant | -7/Factory Scavenger-Mutant | -7/Waste Mutant | -7/Factory Scavenger-Mutant | -7/Lower Caves Mutant | -7/Lower Caves Mutant | -7/Zion Scavenger-Mutant | -7/Deep Caves Resources | -11 -10 -10 -10 -9 -8 -7 -7 -7 -7 -7 -7 -7 ----------- Run | Yrd Mat Min Exi Min Mat Fac Was Fac Low Low Zio Dee Matter Collected 2529 | 220 294 210 . 105 483 355 207 200 34 30 . 391 Remotely . | . . . . . . . . . . . . . Salvage Created 5275 | 57 403 185 . 212 2281 554 . 759 356 . . 468 Parts 283 | 7 27 15 . 13 100 43 . 25 15 . . 38 Haulers Intercepted 7 | . 2 . . . 2 1 . 2 . . . . Recyclers Shooed 8 | 1 2 . . 1 4 . . . . . . . Parts Field Recycled . | . . . . . . . . . . . . . Retrieved Matter . | . . . . . . . . . . . . . Parts Self-Destructed 15 | . . . . . . . . . 15 . . . Prevented . | . . . . . . . . . . . . . Kills | -11 -10 -10 -10 -9 -8 -7 -7 -7 -7 -7 -7 -7 ------- Run | Yrd Mat Min Exi Min Mat Fac Was Fac Low Low Zio Dee Combat Hostiles Destroyed 85 | . 2 7 . 4 33 11 . 12 8 . . 8 Guns 57 | . 2 6 . 4 23 3 . 5 8 . . 6 Cannons 17 | . . . . . 3 7 . 5 . . . 2 AOE 4 | . . . . . 3 1 . . . . . . Classes Destroyed 17 | 1 6 1 . . 5 1 . . 1 . . 2 Worker 6 | . 1 . . 1 2 2 . . . . . . Builder 3 | . . . . . 2 1 . . . . . . Tunneler 10 | 3 . 1 . 3 1 2 . . . . . . Hauler 7 | . 2 . . . 2 1 . 2 . . . . Recycler 9 | . 2 . . 1 6 . . . . . . . Mechanic 1 | . 1 . . . . . . . . . . . Watcher 8 | . 2 . . . 3 2 . 1 . . . . Swarmer 21 | . . 5 . 4 4 4 . . 4 . . . Grunt 32 | . 2 2 . . 15 2 . 9 2 . . . Brawler 5 | . . . . . 3 1 . . 1 . . . Duelist 2 | . . . . . 2 . . . . . . . Sentry 10 | . . . . . 7 2 . 1 . . . . Hunter 3 | . . . . . 2 1 . . . . . . Programmer 3 | . . . . . . 1 . 2 . . . . Behemoth 1 | . . . . . . . . . 1 . . . Z-Technician 1 | . . . . . . . . . . . . 1 Z-Light 7 | . . . . . . . . . . . . 7 Surgeon 1 | . . . . . . . . 1 . . . . Best Kill Streak 6 | 2 4 3 . 2 6 5 . 3 4 . . 3 Combat Bots Only 5 | . 2 3 . 2 5 4 . 3 4 . . 3 Max Kills in Single Turn 3 | 1 1 1 . 1 3 2 . 1 2 . . 1 Gunslinging 1 | . . . . . . . . . 1 . . . Exploded 3 | . . . . . 3 1 . . . . . . Melee . | . . . . . . . . . . . . . Uniques/NPCs Destroyed 1 | . . . . . . . . . . . . 1 Z-Imprinter (-7/Deep Caves) Combat | -11 -10 -10 -10 -9 -8 -7 -7 -7 -7 -7 -7 -7 -------- Run | Yrd Mat Min Exi Min Mat Fac Was Fac Low Low Zio Dee Hostile Shots Fired 725 | . 19 32 . 46 217 113 4 78 63 . . 153 Missed 195 | . 2 11 . 6 55 36 . 26 17 . . 42 Damage Taken 9783 | . 204 196 . 294 2952 883 148 921 823 . . 3362 Core 1163 | . 78 30 . 59 278 51 105 35 27 . . 500 Absorbed by Shields . | . . . . . . . . . . . . . Reduced by Siege Mode 54 | . . . . . . . . . . . . 54 Redirected to Shielding 114 | . . . . . . . . . . . . 114 Regen/Repaired (Parts) 1474 | . . . . . 827 . 150 497 . . . . Core Remaining (%) 60 | 100 . . . 33 49 . . . . . . . Volleys Fired 380 | 10 22 15 . 16 140 42 8 61 21 . 4 41 Largest 2 | 2 2 2 . 2 2 2 2 2 2 . 2 2 Hottest 156 | 40 100 100 . 100 110 120 110 156 150 . 150 156 Shots Fired 673 | 20 44 30 . 27 261 78 16 78 43 . 7 69 Gun 543 | 20 44 30 . 27 223 50 16 38 43 . 5 47 Cannon 121 | . . . . . 37 28 . 40 . . . 16 Launcher 1 | . . . . . 1 . . . . . . . Special 8 | . . . . . . . . . . . 2 6 Kinetic 84 | 20 4 . . 5 5 50 . . . . . . Thermal 545 | . 40 30 . 22 248 16 . 78 43 . 5 63 Explosive 1 | . . . . . 1 . . . . . . . Electromagnetic 35 | . . . . . 7 12 16 . . . . . Robot Hit Streak 23 | 5 14 7 . 3 23 23 9 10 14 . 6 8 Robot Miss Streak 6 | 1 2 6 . 3 5 3 2 4 3 . . 4 Penetration Max . | . . . . . . . . . . . . . Secondary Targets 10 | . 1 . . 1 5 . . 1 1 . . 1 Max Gunslinging Chain 1 | . 1 . . 1 1 . . 1 1 . . 1 Shots Hit Robots 465 | 14 33 16 . 16 192 51 12 51 32 . 4 44 Core Hits 211 | 6 18 8 . 8 79 31 2 21 16 . . 22 Critical Kills . | . . . . . . . . . . . . . Critical Parts Destroyed . | . . . . . . . . . . . . . Critical Strikes 24 | . 3 1 . 1 8 1 . 6 3 . . 1 Burn 23 | . 3 1 . 1 8 . . 6 3 . . 1 Blast 1 | . . . . . . 1 . . . . . . Melee Attacks 4 | . . . . 3 1 . . . . . . . Impact 4 | . . . . 3 1 . . . . . . . Slashing . | . . . . . . . . . . . . . Piercing . | . . . . . . . . . . . . . Sneak Attacks 1 | . . . . 1 . . . . . . . . Combat Hostiles . | . . . . . . . . . . . . . Follow-up Attacks . | . . . . . . . . . . . . . Damage Inflicted 9644 | 141 428 232 . 290 3743 1318 12 1397 755 . 10 1318 Guns 7085 | 141 428 222 . 198 2969 750 12 609 755 . 10 991 Cannons 2122 | . . . . . 533 498 . 772 . . . 319 Explosions 275 | . . . . . 230 45 . . . . . . Melee 71 | . . . . 71 . . . . . . . . Ramming 91 | . . 10 . 21 11 25 . 16 . . . 8 Kinetic 1160 | 141 36 . . 42 101 840 . . . . . . Thermal 7742 | . 392 222 . 156 3315 201 . 1381 755 . 10 1310 Explosive 275 | . . . . . 230 45 . . . . . . Electromagnetic 305 | . . . . . 86 207 12 . . . . . Impact 71 | . . . . 71 . . . . . . . . Slashing . | . . . . . . . . . . . . . Piercing . | . . . . . . . . . . . . . Highest Corruption 5 | . . . . . 1 1 . 1 1 1 5 5 Average Corruption 1 | . . . . . 1 1 . 1 1 1 4 5 Corruption Purged 1 | . . . . . . 1 . . . . . . Corruption Blocked . | . . . . . . . . . . . . . Effects 76 | . . . . . 12 . . 12 9 2 22 19 Message Errors 21 | . . . . . 3 . . 5 2 1 6 4 Matter Fused 18 | . . . . . 3 . . 3 4 . 5 3 Heat Flow Errors 13 | . . . . . 3 . . . . . 4 6 Energy Discharges 7 | . . . . . 3 . . 1 1 . 1 1 Parts Rejected 2 | . . . . . . . . . . . . 2 Parts Fused 1 | . . . . . . . . 1 . . . . Data Loss (minor) 4 | . . . . . . . . 1 . . 2 1 Data Loss (major) 3 | . . . . . . . . . . 1 2 . Misfires 4 | . . . . . . . . . 1 . 2 1 Alerts 3 | . . . . . . . . 1 1 . . 1 Overload Shots . | . . . . . . . . . . . . . Overflow Damage 71 | . . . . 49 15 1 . 5 . . . 1 Projectiles 7 | . . . . . . 1 . 5 . . . 1 Explosions 15 | . . . . . 15 . . . . . . . Melee 49 | . . . . 49 . . . . . . . . Knockbacks 5 | . . . . . . 4 . 1 . . . . Impact 1 | . . . . . . . . 1 . . . . Kinetic 3 | . . . . . . 3 . . . . . . Secondary 1 | . . . . . . 1 . . . . . . Self-Inflicted Damage 119 | . . . . . 38 81 . . . . . . Shots 2 | . . . . . 1 1 . . . . . . Rammed 18 | . 1 3 . 3 3 2 . . . . . 6 Targets Rammed 22 | . 1 4 . 4 4 2 . 1 . . . 6 Kicked . | . . . . . . . . . . . . . Crushed 4 | . . 1 . 1 1 . . 1 . . . . Highest Temperature 425 | . 348 292 . 384 425 91 . 198 72 . 231 223 Average Temperature 88 | . 126 118 . 164 105 24 . 64 24 . 120 80 Received Heat Transfer 3033 | . 114 33 . . 1107 189 . 339 252 . . 999 Effects 7 | . 3 . . 2 2 . . . . . . . Shutdowns 1 | . . . . 1 . . . . . . . . Energy Bleed 3 | . 1 . . . 2 . . . . . . . Interference 2 | . 2 . . . . . . . . . . . Damage (minor) 1 | . . . . 1 . . . . . . . . Siege Activations 1 | . . . . . . . . . . . . 1 Total Turns 38 | . . . . . . . . . . . . 38 Longest Duration 38 | . . . . . . . . . . . . 38 Robots Corrupted 1 | . . . . 1 . . . . . . . . Combat Hostiles . | . . . . . . . . . . . . . Parts Fried 6 | . . . . 4 1 1 . . . . . . Impact Corruptions 2 | . . . . 2 . . . . . . . . Robots Melted 7 | . . 1 . . 4 . . 2 . . . . Combat Hostiles 7 | . . 1 . . 4 . . 2 . . . . Parts Melted 54 | . 3 4 . 3 25 . . 6 6 . . 7 Heat Transferred 15817 | . 1369 703 . 518 7437 344 . 2368 1480 . 37 1561 Parts Sabotaged . | . . . . . . . . . . . . . Parts Stolen . | . . . . . . . . . . . . . Parts Stripped . | . . . . . . . . . . . . . Power Chain Reactions . | . . . . . . . . . . . . . Alert | -11 -10 -10 -10 -9 -8 -7 -7 -7 -7 -7 -7 -7 ------- Run | Yrd Mat Min Exi Min Mat Fac Was Fac Low Low Zio Dee Peak Influence 484 | 15 75 145 . 70 347 246 67 484 . . . . Initial 141 | . 9 25 . . 9 141 43 . . . . . Average 147 | 4 44 42 . 26 213 133 37 299 . . . . Maximum Alert Level 2 | . . . . . 1 1 . 2 . . . . Low Security (%) 65 | 100 100 100 . 100 34 91 100 23 . . . . Level 1 32 | . . . . . 65 8 . 61 . . . . Level 2 2 | . . . . . . . . 14 . . . . Level 3 . | . . . . . . . . . . . . . Level 4 . | . . . . . . . . . . . . . Level 5 . | . . . . . . . . . . . . . High Security . | . . . . . . . . . . . . . Max Security . | . . . . . . . . . . . . . Squads Dispatched 16 | . . . . 1 6 2 . 7 . . . . Investigation 6 | . . . . 1 2 1 . 2 . . . . Extermination 4 | . . . . . . 1 . 3 . . . . Reinforcement 4 | . . . . . 2 . . 2 . . . . Assault . | . . . . . . . . . . . . . Garrison 2 | . . . . . 2 . . . . . . . Intercept . | . . . . . . . . . . . . . Searches Triggered . | . . . . . . . . . . . . . Construction Impeded 1 | . . . . . 1 . . . . . . . Haulers Reinforced 2 | . . . . . . . . 2 . . . . Active Scanning Responses . | . . . . . . . . . . . . . Cargo Convoy Interrupts . | . . . . . . . . . . . . . Stealth | -11 -10 -10 -10 -9 -8 -7 -7 -7 -7 -7 -7 -7 --------- Run | Yrd Mat Min Exi Min Mat Fac Was Fac Low Low Zio Dee Distress Signals 3 | . . . . . 1 2 . . . . . . Communications Jammed . | . . . . . . . . . . . . . Distress Signals . | . . . . . . . . . . . . . Times Spotted 136 | . 6 8 . 4 49 18 4 26 9 . . 12 Peak Tracking Total 6 | . 2 3 . 4 6 4 2 4 4 . . 5 Tactical Retreats 3 | . . . . . 2 1 . . . . . . Traps | -11 -10 -10 -10 -9 -8 -7 -7 -7 -7 -7 -7 -7 ------- Run | Yrd Mat Min Exi Min Mat Fac Was Fac Low Low Zio Dee Traps Triggered 5 | . . . . . . 3 . 2 . . . . Indirectly . | . . . . . . . . . . . . . Trap Hack Attempts . | . . . . . . . . . . . . . Triggered . | . . . . . . . . . . . . . Disarmed . | . . . . . . . . . . . . . Reprogrammed . | . . . . . . . . . . . . . Reused . | . . . . . . . . . . . . . Traps Extracted . | . . . . . . . . . . . . . Installed . | . . . . . . . . . . . . . Triggered . | . . . . . . . . . . . . . Machines | -11 -10 -10 -10 -9 -8 -7 -7 -7 -7 -7 -7 -7 ---------- Run | Yrd Mat Min Exi Min Mat Fac Was Fac Low Low Zio Dee Machines Disabled 11 | . . . . . 3 2 . 5 . . . 1 Max in Single Turn 1 | . . . . . 1 1 . 1 . . . 1 Garrison Access 1 | . . . . . 1 . . . . . . . Machines Repaired . | . . . . . . . . . . . . . Machines Dismantled . | . . . . . . . . . . . . . Machines Sabotaged . | . . . . . . . . . . . . . Overloaded Fab Kills . | . . . . . . . . . . . . . Hacking | -11 -10 -10 -10 -9 -8 -7 -7 -7 -7 -7 -7 -7 --------- Run | Yrd Mat Min Exi Min Mat Fac Was Fac Low Low Zio Dee Machines Accessed 28 | . 4 . 4 1 10 3 . 5 1 . . . Terminals 14 | . 4 . . . 6 2 . 2 . . . . Fabricators 1 | . . . . . . . . 1 . . . . Repair Stations 3 | . . . . . 1 1 . 1 . . . . Recycling Units 2 | . . . . . 1 . . 1 . . . . Scanalyzers 1 | . . . . . 1 . . . . . . . Garrison Access 1 | . . . . . 1 . . . . . . . Total Hacks 82 | . 13 . 4 1 38 10 . 15 1 . . . Successful 43 | . 6 . 4 1 20 4 . 7 1 . . . Failed 38 | . 7 . . . 17 6 . 8 . . . . Catastrophic 3 | . . . . . 2 1 . . . . . . Database Lockouts 1 | . . . . . 1 . . . . . . . Manual 31 | . 12 . . . 13 2 . . . . 4 . Terminals 43 | . 13 . . . 19 8 . 3 . . . . Fabricators 3 | . . . . . . . . 3 . . . . Repair Stations 19 | . . . . . 10 2 . 7 . . . . Recycling Units 3 | . . . . . 1 . . 2 . . . . Scanalyzers 6 | . . . . . 6 . . . . . . . Garrison Access 2 | . . . . . 2 . . . . . . . Terminal Hacks 21 | . 6 . 4 1 5 3 . 1 1 . . . Record 4 | . . . 4 . . . . . . . . . Robot Schematic 1 | . 1 . . . . . . . . . . . Robot Analysis 5 | . 4 . . . 1 . . . . . . . Open Door 2 | . . . . 1 . . . . 1 . . . Branch Access Points 1 | . . . . . 1 . . . . . . . Terminal Index 1 | . . . . . 1 . . . . . . . Alert Level 3 | . 1 . . . 1 1 . . . . . . Unreport Threat 2 | . . . . . 1 1 . . . . . . Locate Traps 2 | . . . . . . 1 . 1 . . . . Fabricator Hacks 1 | . . . . . . . . 1 . . . . Network Status 1 | . . . . . . . . 1 . . . . Repair Station Hacks 14 | . . . . . 9 1 . 4 . . . . Scan Component 8 | . . . . . 5 1 . 2 . . . . Repair 6 | . . . . . 4 . . 2 . . . . Recycling Unit Hacks 2 | . . . . . 1 . . 1 . . . . Report Inventory 2 | . . . . . 1 . . 1 . . . . Scanalyzer 4 | . . . . . 4 . . . . . . . Insert Component 2 | . . . . . 2 . . . . . . . Analyze 2 | . . . . . 2 . . . . . . . Garrison Access Hacks 1 | . . . . . 1 . . . . . . . Seal Access 1 | . . . . . 1 . . . . . . . Unauthorized Hacks . | . . . . . . . . . . . . . Terminals . | . . . . . . . . . . . . . Fabricators . | . . . . . . . . . . . . . Repair Stations . | . . . . . . . . . . . . . Recycling Units . | . . . . . . . . . . . . . Scanalyzers . | . . . . . . . . . . . . . Garrison Access . | . . . . . . . . . . . . . Data Cores Recovered . | . . . . . . . . . . . . . Used . | . . . . . . . . . . . . . Hacking Detections 21 | . 4 . . . 9 3 . 5 . . . . Full Trace Events 6 | . 1 . . . 3 1 . 1 . . . . Feedback Events . | . . . . . . . . . . . . . Feedback Blocked . | . . . . . . . . . . . . . Robot Schematics Acquired 5 | . 1 . . . . . . . . . 4 . Robots Built . | . . . . . . . . . . . . . Authchips . | . . . . . . . . . . . . . Time . | . . . . . . . . . . . . . Total Robot Build Rating . | . . . . . . . . . . . . . Part Schematics Acquired 17 | . . . . . 2 . . . . . 15 . Parts Built . | . . . . . . . . . . . . . Authchips . | . . . . . . . . . . . . . Time . | . . . . . . . . . . . . . Total Part Build Rating . | . . . . . . . . . . . . . Parts Repaired 6 | . . . . . 4 . . 2 . . . . Time 240 | . . . . . 140 . . 100 . . . . Parts Recycled . | . . . . . . . . . . . . . Recycled Matter . | . . . . . . . . . . . . . Retrieved Matter . | . . . . . . . . . . . . . Retrieved Components . | . . . . . . . . . . . . . Parts Scanalyzed 2 | . . . . . 2 . . . . . . . Part Schematics Acquired 2 | . . . . . 2 . . . . . . . Parts Damaged . | . . . . . . . . . . . . . Bothacking | -11 -10 -10 -10 -9 -8 -7 -7 -7 -7 -7 -7 -7 ------------ Run | Yrd Mat Min Exi Min Mat Fac Was Fac Low Low Zio Dee Used RIF Installer . | . . . . . . . . . . . . . Robots Hacked 5 | . . . . . . . . . . . 2 3 Non-combat . | . . . . . . . . . . . . . Combat 5 | . . . . . . . . . . . 2 3 Robot Hacks Applied 5 | . . . . . . . . . . . 2 3 parse_system 5 | . . . . . . . . . . . 2 3 Relay Couplers Released . | . . . . . . . . . . . . . Fabnet Peak Effective % . | . . . . . . . . . . . . . Robots Rewired . | . . . . . . . . . . . . . Allies Hacked 1 | . . . . . . . . 1 . . . . Hacks Repelled . | . . . . . . . . . . . . . Allies | -11 -10 -10 -10 -9 -8 -7 -7 -7 -7 -7 -7 -7 -------- Run | Yrd Mat Min Exi Min Mat Fac Was Fac Low Low Zio Dee Total Allies 26 | . . . . . . . 18 . . . 8 . Largest Group 18 | . . . . . . . 18 15 . . 8 8 Highest-Rated Group 434 | . . . . . . . 434 391 . . 211 211 Highest-Rated Ally 51 | . . . . . . . 35 35 . . 51 51 Total Orders . | . . . . . . . . . . . . . Ally Attacks 242 | . . . . . . . 125 97 . . . 20 Total Damage 5955 | . . . . . . . 3672 2049 . . . 234 Kills 29 | . . . . . . . 9 16 . . . 4 Allies Corrupted . | . . . . . . . . . . . . . Allies Melted 1 | . . . . . . . . 1 . . . . Intel | -11 -10 -10 -10 -9 -8 -7 -7 -7 -7 -7 -7 -7 ------- Run | Yrd Mat Min Exi Min Mat Fac Was Fac Low Low Zio Dee Robot Analysis Total 5 | . 4 . . . 1 . . . . . . . Derelict Logs Recovered 4 | . . 1 . 1 . . . . . . 2 . Drone Launches . | . . . . . . . . . . . . . Drone Recoveries . | . . . . . . . . . . . . . Exploration | -11 -10 -10 -10 -9 -8 -7 -7 -7 -7 -7 -7 -7 ------------- Run | Yrd Mat Min Exi Min Mat Fac Was Fac Low Low Zio Dee Turns Passed 13969 | 169 580 905 989 1145 2984 1151 654 1373 1292 482 1544 701 Spaces Moved 6711 | 91 304 529 619 662 797 391 411 598 762 300 939 308 Core 108 | 18 . . . . . . 90 . . . . . Treads 6541 | 73 304 529 619 662 797 391 321 598 762 300 939 246 Legs . | . . . . . . . . . . . . . Wheels . | . . . . . . . . . . . . . Hover . | . . . . . . . . . . . . . Flight 62 | . . . . . . . . . . . . 62 Fastest Speed 50 | 50 160 160 160 160 160 238 50 160 160 160 160 109 Average Speed 177 | 138 160 160 160 160 280 238 137 160 160 160 160 170 Slowest Speed 560 | 160 160 160 160 160 560 238 238 160 160 160 160 455 Overloaded Moves . | . . . . . . . . . . . . . Propulsion Burnouts . | . . . . . . . . . . . . . Robots Hopped . | . . . . . . . . . . . . . Cave-ins Triggered . | . . . . . . . . . . . . . Exploration Rate (%) 62 | 5 52 97 94 100 71 14 96 21 86 49 86 43 Regions Visited 12 Branch Regions 7 Pre-discovered Areas 1 | . . . . . . . . . . . 1 . Known Exits Taken 5 | . 1 1 1 1 1 . . . . . . . Unknown Exits Taken 5 | 1 . . . . . . . 1 1 1 1 . Scrap Searched 10 | . . 1 . 2 . . . . 3 1 3 . Spaces Dug 5 | . . . . 2 1 1 . 1 . . . . Terrain Destroyed 43 | . . . . 2 9 27 . 2 . . . 3 Melee 3 | . . . . 2 1 . . . . . . . Projectile 8 | . . . . . . 3 . 2 . . . 3 AOE 32 | . . . . . 8 24 . . . . . . Terrain Rammed . | . . . . . . . . . . . . . Walls Destroyed . | . . . . . . . . . . . . . Machines Disabled . | . . . . . . . . . . . . . Actions | -11 -10 -10 -10 -9 -8 -7 -7 -7 -7 -7 -7 -7 --------- Run | Yrd Mat Min Exi Min Mat Fac Was Fac Low Low Zio Dee Total 8077 | 113 354 555 618 715 1278 536 486 936 793 302 978 413 Wait 609 | 3 8 3 . 2 237 56 31 237 2 2 19 9 Move 6700 | 90 303 528 618 661 796 391 410 597 761 299 938 308 Hop . | . . . . . . . . . . . . . Pick Up 93 | 4 7 5 . 9 27 10 9 8 3 . 2 9 Fast Attach 73 | 6 4 . . 1 17 4 9 11 2 . 4 15 Attach 40 | . 1 . . 2 15 6 4 1 1 . 2 8 Detach 11 | . 1 . . 1 3 3 . 2 . . 1 . Swap 47 | . 2 . . 7 15 8 1 5 . . 2 7 Drop 97 | . 5 . . 9 23 14 14 13 3 . 6 10 Fire 380 | 10 22 15 . 16 140 42 8 61 21 . 4 41 Melee 4 | . . . . 3 1 . . . . . . . Ram . | . . . . . . . . . . . . . Kick . | . . . . . . . . . . . . . Crush 22 | . 1 4 . 4 4 2 . 1 . . . 6 Escape Stasis . | . . . . . . . . . . . . . Rewire 1 | . . . . . . . . . . 1 . . Trap . | . . . . . . . . . . . . . Miscellaneous . | . . . . . . . . . . . . . Route ------- -11/Scrapyard -10/Materials (discovered 2 exits: *Mat / *Min) -10/Mines (discovered 4 exits: *Mat x2 / *Exi / *Sub) -10/Exiles (discovered 2 exits: *Min x2) -9/Mines (discovered 2 exits: *Mat x2) -8/Materials (discovered 2 exits: *Fac x2) -7/Factory -7/Waste -7/Factory (discovered 2 exits: [Fac] / *Low) -7/Lower Caves -7/Lower Caves -7/Zion (discovered 2 exits: [*Dee] / [*Pro]) -7/Deep Caves History --------- Turn | Location | Event 3 | -11/Scrapyard | Discovered new exit (range 16) 170 | -11/Scrapyard | Entered Materials 304 | -10/Materials | Build established: Mutant 320 | -10/Materials | Discovered new exit (range 13) 518 | -10/Materials | Discovered new exit (range 12) 750 | -10/Materials | Identified exit to Mines 750 | -10/Materials | Entered Mines 805 | -10/Mines | Received a Rocket Launcher from a helpful Derelict 1137 | -10/Mines | Discovered new exit (range 7) 1163 | -10/Mines | Identified exit to Subcaves 1216 | -10/Mines | Discovered new exit (range 5) 1222 | -10/Mines | Identified exit to Materials 1581 | -10/Mines | Learned 8 Materials zone layouts 1621 | -10/Mines | Discovered exit to Materials (range 7) 1647 | -10/Mines | Deemed a non-threat by the Exiles lab entrance 1648 | -10/Mines | Discovered new exit (range 5) 1653 | -10/Mines | Identified exit to Exiles 1655 | -10/Mines | Entered Exiles 1655 | -10/Exiles | Found Exiles lab abandoned 2014 | -10/Exiles | Discovered new exit (range 10) 2025 | -10/Exiles | Identified exit to Mines 2614 | -10/Exiles | Discovered exit to Mines (range 14) 2644 | -10/Exiles | Entered Mines 2660 | -9/Mines | Core integrity fell below 50% 2754 | -9/Mines | Learned Materials emergency access door positions 2877 | -9/Mines | Discovered new exit (range 4) 2893 | -9/Mines | Identified exit to Materials 3064 | -9/Mines | Discovered exit to Materials (range 13) 3325 | -9/Mines | Met a Derelict shopkeep closing up shop 3789 | -9/Mines | Entered Materials 3789 | -8/Materials | Evolved 4 slots: Utility x4 3790 | -8/Materials | Identified exit to Factory 3953 | -8/Materials | Repaired Beam Cannon 3998 | -8/Materials | Repaired Hrd. Heavy Armor Plating 4026 | -8/Materials | Repaired Med. Laser 4207 | -8/Materials | Garrison activated, responded to threat 4643 | -8/Materials | Discovered exit to Factory (range 11) 4648 | -8/Materials | Build established: Scavenger-Mutant 5319 | -8/Materials | Central database locked down 6261 | -8/Materials | Core integrity fell below 50% 6293 | -8/Materials | Lost 3 parts (1p2u) 6576 | -8/Materials | Repaired Hrd. Heavy Armor Plating 6773 | -8/Materials | Entered Factory 6773 | -7/Factory | Evolved 2 slots: Propulsion x2 6832 | -7/Factory | Build established: Hacker-Mutant 7369 | -7/Factory | Discovered new exit (range 12) 7924 | -7/Factory | Sucked down chute 7924 | -7/Factory | Entered Waste 7943 | -7/Waste | Spotted C-40 Crusher 7957 | -7/Waste | Spotted C-40 Crusher 7967 | -7/Waste | Crushed by Compactor (1 part destroyed, 2 dropped) 7969 | -7/Waste | Released all parts (9) 7982 | -7/Waste | Spotted C-40 Crusher 7987 | -7/Waste | Warlord forces began an assault 7992 | -7/Waste | Allies destroyed C-40 Crusher 7995 | -7/Waste | Allies destroyed C-40 Crusher 8017 | -7/Waste | Spotted C-40 Crusher 8024 | -7/Waste | Allies destroyed C-40 Crusher 8028 | -7/Waste | Allies destroyed C-40 Crusher 8322 | -7/Waste | Discovered new exit (range 13) 8434 | -7/Waste | Build established: Scavenger-Mutant 8578 | -7/Waste | Entered Factory 8578 | -7/Factory | Accompanied by 15 allies 8720 | -7/Factory | Lost 5 allies 8807 | -7/Factory | Discovered new exit (range 15) 8917 | -7/Factory | Build established: Mutant 9022 | -7/Factory | Discovered new exit (range 16) 9068 | -7/Factory | Lost 3 allies 9255 | -7/Factory | Lost 4 allies 9267 | -7/Factory | Noticed a derelict Sapper rigging charges 9541 | -7/Factory | Repaired Hrd. Heavy Armor Plating 9598 | -7/Factory | Repaired Hvy. Treads 9638 | -7/Factory | Build established: Scavenger-Mutant 9696 | -7/Factory | P-60 Hacker assimilated allied UA-IJ8(m) 9951 | -7/Factory | Entered Lower Caves 10245 | -7/Lower Caves | Spotted B-75 Beast 10886 | -7/Lower Caves | Destroyed B-75 Beast 11103 | -7/Lower Caves | Discovered new exit (range 14) 11169 | -7/Lower Caves | Build established: Mutant 11233 | -7/Lower Caves | Attracted the attention of an 0b10 checkpoint 11243 | -7/Lower Caves | Entered another Lower Caves area 11701 | -7/Lower Caves | Discovered new exit (range 6) 11725 | -7/Lower Caves | Entered Zion 11746 | -7/Zion | Acquired unknown access codes intercepted by a Zionite 11863 | -7/Zion | System corruption cleaned by Quarantine Array 11921 | -7/Zion | Gained Derelict followers 11935 | -7/Zion | Discovered new exit (range 11) 12139 | -7/Zion | Learned Factory emergency access door positions 12268 | -7/Zion | Gained Derelict followers 12271 | -7/Zion | Learned Factory stockpile data 12397 | -7/Zion | Found Prototype Processor 12397 | -7/Zion | Identified Exp. Target Analyzer 12400 | -7/Zion | Found Prototype Processor 12400 | -7/Zion | Identified Exp. Armor Integrity Analyzer 12407 | -7/Zion | Found Prototype Processor 12407 | -7/Zion | Identified Exp. Targeting Computer 12411 | -7/Zion | Found Prototype Processor 12411 | -7/Zion | Identified Exp. Core Analyzer 12521 | -7/Zion | Found CR-A16's Pointy Stick 12670 | -7/Zion | Learned location of Data Miner (-6) 13064 | -7/Zion | Met Imprinter 13221 | -7/Zion | Opened final containment barrier to the Deep Caves 13247 | -7/Zion | Discovered new exit (range 3) 13247 | -7/Zion | Saw the warning signs outside the Deep Caves entrance 13269 | -7/Zion | Entered Deep Caves 13269 | -7/Deep Caves | Accompanied by 8 allies 13367 | -7/Deep Caves | Attacked by Z-Imprinter 13414 | -7/Deep Caves | Core integrity fell below 50% 13417 | -7/Deep Caves | Lost 8 allies 13439 | -7/Deep Caves | Destroyed Z-Imprinter 13466 | -7/Deep Caves | Lost 7 parts (1n3u3w) 13469 | -7/Deep Caves | Found Zio. Metafield Generator 13547 | -7/Deep Caves | Z-Facility disabled 13666 | -7/Deep Caves | Build established: Scavenger-Mutant 13728 | -7/Deep Caves | Found Zio. Weapon Casing 13743 | -7/Deep Caves | Lost 7 parts (2n1u4w) 13956 | -7/Deep Caves | Core integrity fell below 20% 13970 | -7/Deep Caves | Destroyed by G9-S17(z) with Zionite Laser-S Last Messages --------------- emitted. 13909_ ZYXACT|BR==3JJ|5KRW E 13949_ Lgt. Treads destroyed. 13953_ System corrupted: Heat flow error (+206). 13953_ Cesium-ion Thruster destroyed. 13953_ Enh. Nuclear Core destroyed. 13954_ Cesium-ion Thruster destroyed. 13957_ Destroyed Zio. Glidesys I. 13960_ Zio. Light Carapace melted. 13960_ AM-BR6(z) destroyed. 13963_ Dropped Zio. Biocell. 13964_ Extracted 64 energy. 13964_ 2Z-ZS7(z) destroyed. 13965_ Extracted 26 energy. 13966_ Zio. Light DM Reactor destroyed. 13968_ System corrupted: Energy discharge (-24). 13968_ Extracted 56 energy. 13968_ Cesium-ion Thruster destroyed. 13969_ Extracted 2 energy. 13970_ Extracted 52 energy. Map ----- +----------------------------------------------------+ | | | | | | | | | | | | | | | | | | | | | | | | | | | | | | | | | | | | | | | | | ?????????????????????#???????????????????????????? | | ?????????????????????# ??????######;########?????? | | ?????????????????????# !??#### ##????? | | ?????????????????????# !### #????# | | ?????????????#???????# #;; ###### | | ???????????### #???#!;;@ ## # | | ???????????# ##%= | | ????????? z!z= | | ????????? ![! | | ????????? z | | ????????? | | ?????????? """"" """""" | | ?????????? """""""""""""" | | ??????????? """""""""""""" | | ??????????? """""""""""""" | | ??????????? ""??""""""" | | ???????????? ""???????""""" | | ???????????? ""?????""""""" | | ????????????? "??????""""""" | | ????????????? "?????"""""""" | | ??????????????? "?????"""="/" | | ????????????????? ?????""""%*%= | | ???????????????????? ??????"""=!/= | | ?????????????????????? ???????"""%=* | | ?????????????????????????????????""" | | ????????????????????????????????"""""" | | ??????????????????????????????""""""""""%* | | ????????????????????????? ????""" ! | | ??????????????????? ???""" """ | | ????????????????? "??""" """"" | +----------------------------------------------------+ Best States ------------- Heat Dissipation 112 Coolant Potential 100 Energy Generation 21 Energy Capacity 325 Matter Stores 300 Matter Capacity 300 Sight Range 16 Terrain Scan Range 16 Terrain Scan Density 210 Armor Coverage 905 Weapon Shielding 100 Phase Shifting 5 Evasion (%) 50 Armor Integrity Analysis 50 Recoil Reduction 4 Offensive Hacking 20 Item Schematics ----------------- Hrd. Heavy Armor Plating | -8/Materials | Scanalyzed Arm. Treads | -8/Materials | Scanalyzed Force Field | -7/Zion | Archive Core Analyzer | -7/Zion | Archive Lightning Gun | -7/Zion | Archive Imp. Reaction Control System | -7/Zion | Archive Imp. Coolant Injector | -7/Zion | Archive Hvy. Ion Cannon | -7/Zion | Archive Magnetic Acceleration Cannon | -7/Zion | Archive Greatsword | -7/Zion | Archive Matter Compressor | -7/Zion | Archive Arc Projector | -7/Zion | Archive Thermic Laser | -7/Zion | Archive Adv. ECM Suite | -7/Zion | Archive Arm. Leg | -7/Zion | Archive Dynamic Insulation System | -7/Zion | Archive Imp. Recalibrator | -7/Zion | Archive Robot Schematics ------------------ M-13 Machinist | -10/Materials | Hacked W-25 Informer | -7/Zion | Archive O-24 Administrator | -7/Zion | Archive R-06 Scavenger | -7/Zion | Archive H-77 Assassin | -7/Zion | Archive Fabricated ------------ Nothing Alien Tech Used ----------------- None Achievements -------------- Are We The Baddies? Challenges ------------ None Game ------ Seed SpacefoldElectrostormLoader Manual? 0 Play Time 02:14:43 Cumulative 63.6 hours Start 2024.09.05 @ 20:48:20 End 2024.09.06 @ 20:51:30 Sessions 5 Manual Loads 0 Difficulty Rogue Special Mode None Game No. 39 Rogue 39 Adventurer 0 Explorer 0 Win Type - Total 0 Types 0/0/0/0/0/0/0/0/0 Lore% 22 Gallery% 45 Achievement% 39 Wizard Run 0 Options --------- Layout 1 ASCII 0 Keyboard 0 Movement Numpad Keybinds 0 Fullscreen 1 Font 24/Smallcaps Map View 50x35 Zoom Use 0% Tactical HUD 1 Map Filters NONE Filters NONE Steam 1 RUN: f1417397-8646-4ed7-a2a9-b96abd8717bf